lending/lending_fUSD_20250430
["ID","MTS","AMOUNT","RATE_DAILY","PERIOD"]
[359461979,1746039060934,-450.0,0.00035616,5]
[359461980,1746039060944,-450.0,0.00035616,5]
[359461981,1746039060954,-450.0,0.00035616,5]
[359461982,1746039060964,-151.0,0.00035616,7]
[359461983,1746039060975,-450.0,0.00035616,5]
[359461984,1746039060987,-450.0,0.00035616,5]
[359461985,1746039060998,-450.0,0.00035616,5]
[359461986,1746039061008,-794.72,0.00035616,5]
[359461987,1746039061018,-450.0,0.00035616,5]
[359461988,1746039061029,-450.0,0.00035616,5]
[359461989,1746039061038,-513.73416945,0.00035616,5]
[359461990,1746039061048,-1233.76,0.00035616,5]
[359461991,1746039061057,-607.62,0.00035616,5]
[359461992,1746039061067,-450.0,0.00035616,5]
[359461993,1746039061077,-537.34,0.00035616,5]
[359461994,1746039061087,-505.90481602,0.00035616,5]
[359461995,1746039061097,-450.0,0.00035616,5]
[359461996,1746039061108,-450.0,0.00035616,5]
[359461997,1746039061122,-458.18015981,0.00035616,5]
[359461998,1746039061131,-500.0,0.00035616,5]
[359461999,1746039061141,-2403.29,0.00035616,2]
[359462000,1746039061151,-450.0,0.00035616,5]
[359462001,1746039061162,-552.2911384,0.00035616,5]
[359462002,1746039061172,-500.0,0.00035616,5]
[359462003,1746039061182,-500.0,0.00035616,5]
[359462004,1746039061193,-500.0,0.00035616,5]
[359462005,1746039061203,-500.0,0.00035616,5]
[359462006,1746039061212,-500.0,0.00035616,5]
[359462007,1746039061221,-500.0,0.00035616,5]
[359462008,1746039061231,-500.0,0.00035616,5]
[359462009,1746039061242,-500.0,0.00035616,5]
[359462010,1746039061254,-500.0,0.00035616,5]
[359462011,1746039061264,-500.0,0.00035616,5]
[359462012,1746039061275,-500.0,0.00035616,5]
[359462013,1746039061287,-500.0,0.00035616,5]
[359462014,1746039061296,-450.0,0.00035616,5]
[359462015,1746039061306,-500.0,0.00035616,5]
[359462016,1746039061316,-151.0,0.00035616,7]
[359462017,1746039061325,-500.0,0.00035616,5]
[359462018,1746039061335,-500.0,0.00035616,5]
[359462019,1746039061344,-450.0,0.00035616,2]
[359462020,1746039061354,-450.0,0.00035616,5]
[359462021,1746039061365,-500.0,0.00035616,5]
[359462022,1746039061375,-500.0,0.00035616,5]
[359462023,1746039061384,-500.0,0.00035616,5]
[359462024,1746039061394,-450.0,0.00035616,5]
[359462025,1746039061404,-450.0,0.00035616,5]
[359462026,1746039061580,-500.0,0.00035616,5]
[359462027,1746039061594,-500.0,0.00035616,5]
[359462028,1746039061603,-333.15565132,0.00035616,5]
[359462029,1746039061616,-450.0,0.00035616,5]
[359462030,1746039061625,-500.0,0.00035616,5]
[359462031,1746039061635,-931.16,0.00035616,5]
[359462032,1746039061644,-500.0,0.00035616,5]
[359462033,1746039061653,-500.0,0.00035616,5]
[359462034,1746039061662,-450.0,0.00035616,5]
[359462035,1746039061671,-351.01717636,0.00035616,5]
[359462036,1746039061681,-500.0,0.00035616,5]
[359462037,1746039061690,-629.25707058,0.00035616,5]
[359462038,1746039061699,-450.0,0.00035616,5]
[359462039,1746039061708,-450.0,0.00035616,5]
[359462040,1746039061718,-1335.66,0.00035616,5]
[359462041,1746039061728,-450.0,0.00035616,5]
[359462042,1746039061738,-151.0,0.00035616,7]
[359462043,1746039061747,-582.57,0.00035616,5]
[359462044,1746039061757,-450.0,0.00035616,2]
[359462045,1746039061767,-180.777589,0.00035616,7]
[359462046,1746039061777,-550.03476421,0.00035616,5]
[359462047,1746039061788,-450.0,0.00035616,5]
[359462048,1746039061799,-512.60689921,0.00035616,5]
[359462049,1746039061810,-191.65809621,0.00035616,5]
[359462050,1746039061820,-470.0,0.00035616,5]
[359462051,1746039061831,-450.0,0.00035616,5]
[359462052,1746039061842,-450.0,0.00035616,2]
[359462053,1746039061853,-527.0005061,0.00035616,5]
[359462054,1746039061863,-450.0,0.00035616,5]
[359462055,1746039061873,-450.0,0.00035616,5]
[359462056,1746039061883,-450.0,0.00035616,5]
[359462057,1746039061892,-450.0,0.00035616,5]
[359462058,1746039061901,-450.0,0.00035616,5]
[359462059,1746039061911,-481.38,0.00035616,5]
[359462060,1746039061920,-450.0,0.00035616,5]
[359462061,1746039061929,-450.0,0.00035616,5]
[359462062,1746039061939,-552.37364748,0.00035616,5]
[359462063,1746039061948,-2704.25,0.00035616,5]
[359462064,1746039061959,-500.0,0.00035616,5]
[359462065,1746039061970,-450.0,0.00035616,5]
[359462066,1746039061980,-1508.57,0.00035616,5]
[359462067,1746039061991,-450.0,0.00035616,5]
[359462068,1746039062001,-1000.0,0.00035616,2]
[359462069,1746039062011,-486.44,0.00035616,5]
[359462070,1746039062023,-450.0,0.00035616,5]
[359462071,1746039062034,-1145.47,0.00035616,5]
[359462072,1746039062046,-151.0,0.00035616,7]
[359462073,1746039062055,-450.0,0.00035616,5]
[359462074,1746039062065,-450.0,0.00035616,5]
[359462075,1746039062074,-450.0,0.00035616,5]
[359462076,1746039062083,-753.35,0.00035616,5]
[359462077,1746039062095,-450.0,0.00035616,5]
[359462078,1746039062105,-518.82078019,0.00035616,5]
[359462079,1746039062118,-450.0,0.00035616,5]
[359462080,1746039062129,-612.73,0.00035616,5]
[359462081,1746039062139,-500.0,0.00035616,2]
[359462082,1746039062149,-524.11258772,0.00035616,5]
[359462083,1746039062159,-500.0,0.00035616,2]
[359462084,1746039062168,-500.0,0.00035616,2]
[359462085,1746039062177,-450.0,0.00035616,5]
[359462086,1746039062187,-500.0,0.00035616,2]
[359462087,1746039062197,-500.0,0.00035616,2]
[359462088,1746039062208,-500.0,0.00035616,2]
[359462089,1746039062217,-500.0,0.00035616,2]
[359462090,1746039062227,-618.84284542,0.00035616,2]
[359462091,1746039062237,-574.14,0.00035616,5]
[359462092,1746039062247,-8189.3,0.00035616,5]
[359462093,1746039062257,-450.0,0.00035616,5]
[359462094,1746039062268,-450.0,0.00035616,5]
[359462095,1746039062278,-1000.0,0.00035616,5]
[359462096,1746039062287,-151.0,0.00035616,7]
[359462097,1746039062297,-450.0,0.00035616,5]
[359462098,1746039062307,-450.0,0.00035616,5]
[359462099,1746039062317,-500.87436312,0.00035616,5]
[359462100,1746039062326,-450.0,0.00035616,5]
[359462101,1746039062336,-450.0,0.00035616,5]
[359462102,1746039062346,-450.0,0.00035616,5]
[359462103,1746039062356,-691.28,0.00035616,5]
[359462104,1746039062367,-691.28,0.00035616,5]
[359462105,1746039062376,-691.28,0.00035616,5]
[359462106,1746039062386,-691.28,0.00035616,5]
[359462107,1746039062396,-154.988574,0.00035616,7]
[359462108,1746039062406,-151.0,0.00035616,7]
[359462109,1746039062417,-691.28,0.00035616,5]
[359462110,1746039062427,-1439.48913646,0.00035616,5]
[359462111,1746039062961,-82.65086354,0.00035616,5]
[359462112,1746039062972,-679.24262516,0.00035616,5]
[359462113,1746039063102,-12.03737484,0.00035616,5]
[359462114,1746039063112,-106.06345981,0.00035616,7]
[359462115,1746039064870,-620.0,0.0002,2]
[359462116,1746039064880,-151.0,0.00035592,7]
[359462117,1746039064890,-68.27508219,0.00035616,7]
[359462118,1746039064899,-533.35620409,0.00035616,5]
[359462119,1746039064909,-691.28,0.00035616,5]
[359462120,1746039064918,-691.28,0.00035616,5]
[359462121,1746039064928,-450.0,0.00035616,5]
[359462122,1746039064937,-450.0,0.00035616,5]
[359462123,1746039064947,-450.0,0.00035616,5]
[359462124,1746039064956,-691.28,0.00035616,5]
[359462125,1746039064967,-691.28,0.00035616,5]
[359462126,1746039064976,-175.89173377,0.00035616,5]
[359462127,1746039064986,-691.28,0.00035616,5]
[359462128,1746039064995,-691.28,0.00035616,5]
[359462129,1746039065005,-691.28,0.00035616,5]
[359462130,1746039065015,-691.28,0.00035616,5]
[359462131,1746039065024,-559.52,0.00035616,5]
[359462132,1746039065033,-450.0,0.00035616,5]
[359462133,1746039065042,-691.28,0.00035616,5]
[359462134,1746039065051,-691.28,0.00035616,5]
[359462135,1746039065061,-691.28,0.00035616,5]
[359462136,1746039065071,-691.28,0.00035616,5]
[359462137,1746039065081,-691.28,0.00035616,5]
[359462138,1746039065090,-691.28,0.00035616,5]
[359462139,1746039065099,-450.0,0.00035616,5]
[359462140,1746039065108,-691.28,0.00035616,5]
[359462141,1746039065119,-691.28,0.00035616,5]
[359462142,1746039065130,-691.28,0.00035616,5]
[359462143,1746039065139,-450.0,0.00035616,5]
[359462144,1746039065148,-601.38,0.00035616,2]
[359462145,1746039065157,-691.44630331,0.00035616,5]
[359462146,1746039065168,-450.0,0.00035616,5]
[359462147,1746039065178,-450.0,0.00035616,3]
[359462148,1746039065190,-154.073553,0.00035616,7]
[359462149,1746039065200,-967.06796651,0.00035616,2]
[359462150,1746039065370,-632.93203349,0.00035616,2]
[359462151,1746039065382,-500.0,0.00035616,2]
[359462152,1746039065391,-500.0,0.00035673,5]
[359462153,1746039065400,-367.06796651,0.00035673,5]
[359462154,1746039065412,-145.09918934,0.00035673,5]
[359462155,1746039065421,-413.57617386,0.00035673,5]
[359462156,1746039122388,200.0,0.00027142,117]
[359462157,1746039122518,200.0,0.000299,117]
[359462357,1746040173528,250.0,0.00017,2]
[359462358,1746040174460,300.0,0.00019,2]
[359462360,1746040232198,-350.0,0.00021,2]
[359462361,1746040232209,-250.0,0.000212,2]
[359462362,1746040232219,-157.88228322,0.000214,2]
[359462363,1746040232229,-93.12787538,0.00021472,2]
[359462364,1746040232253,-57.87212462,0.00021472,2]
[359462365,1746040232264,-207.4,0.00021472,2]
[359462366,1746040232273,-250.0,0.00021541,2]
[359462367,1746040232284,-1200.0,0.00021917,2]
[359462368,1746040232296,-300.0,0.00021917,2]
[359462369,1746040232307,-955.97787528,0.00021918,2]
[359462370,1746040232319,-1322.27618066,0.00021918,2]
[359462371,1746040232355,-366.80351953,0.00021918,2]
[359462372,1746040232409,-20503.41706969,0.00021918,2]
[359462429,1746040238234,-6271.50880514,0.00021918,2]
[359462430,1746040238247,-632.58772212,0.00021918,2]
[359462431,1746040238287,-3263.5300355,0.00021918,2]
[359462432,1746040238341,-1659.72149004,0.00021918,2]
[359462838,1746040243294,-445.66909882,0.00021918,2]
[359462839,1746040243347,-1200.96890676,0.00021918,2]
[359462843,1746040243505,-1965.97432135,0.00021918,2]
[359462858,1746040249366,-1707.84597402,0.00021918,2]
[359462862,1746041108095,1450.0,0.0002,2]
[359462863,1746041108126,2000.0,0.0002,2]
[359462864,1746041108151,2000.0,0.0002,2]
[359462865,1746041108178,2000.0,0.0002,2]
[359462866,1746041108215,2000.0,0.0002,2]
[359462867,1746041108259,2000.0,0.0002,2]
[359462868,1746041108290,2000.0,0.0002,2]
[359462869,1746041108323,2000.0,0.0002,2]
[359462870,1746041108347,2000.0,0.0002,2]
[359462871,1746041108370,2000.0,0.0002,2]
[359462872,1746041108392,2000.0,0.0002,2]
[359462873,1746041108428,2000.0,0.0002,2]
[359462874,1746041108452,2000.0,0.0002,2]
[359462875,1746041108482,2000.0,0.0002,2]
[359462876,1746041108505,2000.0,0.0002,2]
[359462877,1746041128652,2000.0,0.00011,2]
[359462878,1746041168048,2000.0,8e-05,2]
[359462904,1746041275027,4000.0,0.0001,2]
[359462906,1746041296280,194.65874869,0.000135,2]
[359463020,1746041402009,2000.0,0.0002,4]
[359463029,1746041431552,-1200.0,0.00019749,2]
[359463030,1746041431562,-300.0,0.00019749,2]
[359463031,1746041431572,-250.0,0.0001975,2]
[359463032,1746041431581,-200.0,0.0001975,2]
[359463033,1746041431591,-8000.0,0.0001975,2]
[359463034,1746041431600,-197.75012957,0.0001975,2]
[359463035,1746041431611,-200.0,0.00019825,2]
[359463036,1746041431620,-200.0,0.00019886,2]
[359463037,1746041431630,-300.0,0.00019888,2]
[359463038,1746041431640,-3251.41085204,0.00019889,2]
[359463039,1746041431650,-12500.0,0.00019891,2]
[359463040,1746041431660,-300.0,0.00019899,2]
[359463042,1746041431671,-10183.48949956,0.000199,2]
[359463044,1746041431681,-161.93624588,0.000199,2]
[359463046,1746041431691,-12500.0,0.000199,2]
[359463048,1746041431700,-921.389918,0.000199,2]
[359463050,1746041431709,-921.389918,0.000199,2]
[359463052,1746041431718,-153.73963755,0.0001991,2]
[359463054,1746041431727,-163.13857877,0.0001991,2]
[359463056,1746041431737,-611.0,0.00019973,2]
[359463058,1746041431747,-500.0,0.00019973,2]
[359463060,1746041431757,-515.34803,0.00019973,2]
[359463061,1746041431766,-500.0,0.00019973,2]
[359463062,1746041431775,-162.11735202,0.00019973,2]
[359463063,1746041431784,-500.0,0.00019973,2]
[359463064,1746041431793,-500.0,0.00019973,2]
[359463065,1746041431803,-500.0,0.00019973,2]
[359463066,1746041431812,-500.0,0.00019973,2]
[359463067,1746041431822,-500.0,0.00019973,2]
[359463068,1746041431831,-500.0,0.00019973,2]
[359463069,1746041431841,-33523.84928048,0.0001998,2]
[359463098,1746041437443,-201.73429737,0.00019978,2]
[359463100,1746041437460,-475.05926938,0.00019978,2]
[359463101,1746041437477,-3043.98400441,0.0001998,2]
[359463102,1746041437490,-201.98206484,0.0001999,2]
[359463103,1746041437509,-300.0,0.00019999,2]
[359463104,1746041437523,-500.0,0.00019999,2]
[359463105,1746041437539,-500.0,0.00019999,2]
[359463106,1746041437553,-150.0,0.00019999,2]
[359463107,1746041437568,-91.53016094,0.00019999,2]
[359463108,1746041437585,-58.46983906,0.00019999,2]
[359463109,1746041437599,-500.0,0.00019999,2]
[359463110,1746041437612,-500.0,0.00019999,2]
[359463111,1746041437626,-500.0,0.00019999,2]
[359463112,1746041437640,-500.0,0.00019999,2]
[359463113,1746041437654,-500.0,0.00019999,2]
[359463114,1746041437667,-500.0,0.00019999,2]
[359463115,1746041437682,-500.0,0.00019999,2]
[359463116,1746041437696,-500.0,0.00019999,2]
[359463118,1746041437711,-500.0,0.00019999,2]
[359463120,1746041437725,-500.0,0.00019999,2]
[359463123,1746041437739,-500.0,0.00019999,2]
[359463125,1746041437758,-439.65539086,0.00019999,2]
[359463127,1746041437776,-5010688.25280619,0.0002,2]
[359463131,1746041437805,-5534.73604492,0.0002,2]
[359463231,1746041439707,-445246.46697872,0.0002,2]
[359463232,1746041439717,-4955335.26856496,0.0002,2]
[359463233,1746041440188,-7221.79675467,0.0002,2]
[359463234,1746041440199,-11104.40000003,0.0002,2]
[359463235,1746041440211,-18577.6464,0.0002,2]
[359463239,1746041440288,-3053.20038874,0.0002,2]
[359463240,1746041440300,-1401.6,0.0002,2]
[359463241,1746041440322,-79336.87716264,0.0002,2]
[359463242,1746041440333,-500.0,0.0002,2]
[359463471,1746041442566,-71822.5777803,0.0002,2]
[359463485,1746041442673,-298.03985156,0.0002,2]
[359463497,1746041442782,-20883.49999921,0.0002,2]
[359463499,1746041442793,-33183.78218419,0.0002,2]
[359463501,1746041442805,-107011.68918839,0.0002,2]
[359463506,1746041442838,-117302.34720137,0.0002,2]
[359463758,1746041445410,-263.55236006,0.0002,2]
[359463767,1746041445493,-13746.83678158,0.0002,2]
[359463821,1746041446029,-5646.0,0.0002,2]
[359463878,1746041795382,241.99,0.00026156,120]
[359463879,1746041795593,241.99,0.00028771,120]
[359463880,1746041795846,241.99,0.00031387,120]
[359463881,1746041978104,250.0,0.00017,2]
[359463882,1746041979214,300.0,0.00019,2]
[359463883,1746041987303,4000.0,0.0002,23]
[359463884,1746042181082,1122.05,0.00018155,2]
[359463885,1746042292782,4000.0,0.000248,34]
[359463886,1746042292894,4000.0,0.000298,44]
[359463887,1746042292954,4000.0,0.000273,39]
[359463917,1746042612290,1333.33333,0.0002,23]
[359463927,1746042631638,-697.0,0.000196,2]
[359463928,1746042631692,-571.235,0.000196,2]
[359463929,1746042631701,-250.0,0.00019675,2]
[359463930,1746042631711,-150.0,0.0001989,2]
[359463931,1746042631721,-300.0,0.00019899,2]
[359463932,1746042631731,-1200.0,0.00019899,2]
[359463933,1746042631740,-300.0,0.00019899,2]
[359463934,1746042631750,-1161.16903704,0.000199,2]
[359463935,1746042631761,-456.40958204,0.000199,2]
[359463936,1746042631817,-415.0,0.000199,2]
[359463937,1746042631850,-333.83327702,0.000199,2]
[359464172,1746042639993,-850.4168142,0.000199,2]
[359464174,1746042640004,-163.13857877,0.000199,2]
[359464176,1746042640013,-353.26497175,0.000199,3]
[359464178,1746042640022,-584.41120524,0.000199,2]
[359464180,1746042640032,-48.99089024,0.000199,2]
[359464182,1746042640044,-104.74874731,0.000199,2]
[359464184,1746042640053,-2072.85125269,0.000199,2]
[359464195,1746042640149,-2598.83,0.000199,2]
[359464212,1746042640311,-164.34039801,0.000199,2]
[359464214,1746042640322,-155.96257902,0.000199,2]
[359464216,1746042640332,-692.05286677,0.000199,2]
[359464218,1746042640341,-200.0,0.0001991,2]
[359464220,1746042640352,-296.92880584,0.0001991,2]
[359464222,1746042640361,-182.45137215,0.0001991,2]
[359464224,1746042640370,-200.0,0.0001996,2]
[359464226,1746042640380,-500.0,0.00019973,2]
[359464228,1746042640390,-500.0,0.00019973,2]
[359464230,1746042640399,-500.95167534,0.00019973,2]
[359464232,1746042640409,-500.0,0.00019973,2]
[359464234,1746042640418,-498.22629699,0.00019973,2]
[359464236,1746042640427,-500.0,0.00019973,2]
[359464238,1746042640436,-500.0,0.00019973,2]
[359464240,1746042640445,-170.99836626,0.00019973,2]
[359464242,1746042640461,-329.00163374,0.00019973,2]
[359464244,1746042640470,-806.96404157,0.0001999,2]
[359465347,1746042917816,1333.33334,0.000248,34]
[359465348,1746042917865,1333.33333,0.000273,39]
[359465349,1746042917920,1333.33333,0.000298,44]
[359465350,1746042951824,200.0,0.00032876,60]
[359465351,1746043147842,500.0,0.0003,30]
[359465352,1746043193603,1093.79,0.00018981,2]
[359465353,1746043223365,1333.33334,0.0002595,36]
[359465354,1746043542518,222.22222,0.0001999,23]
[359465355,1746043559239,-198.58930852,0.00019399,2]
[359465356,1746043568082,-42.42200348,0.00019399,2]
[359465357,1746043568105,-109.57799652,0.00019447,2]
[359465358,1746043577529,-90.42200348,0.00019447,2]
[359465418,1746043790372,250.0,0.00017,2]
[359465419,1746043791450,300.0,0.00019,2]
[359465421,1746043824721,161.32,0.00028989,120]
[359465430,1746043831828,-161.32,0.00019326,2]
[359465431,1746043831839,-159.61353656,0.00019496,2]
[359465432,1746043831851,-90.38646344,0.00019496,2]
[359465433,1746043831860,-250.0,0.00019541,2]
[359465434,1746043831869,-200.0,0.00019586,2]
[359465435,1746043831879,-622.84758012,0.00019798,2]
[359465436,1746043831889,-584.41120522,0.000198,2]
[359465437,1746043831899,-142.22273122,0.00019875,2]
[359465438,1746043831998,-157.77726878,0.00019875,2]
[359465439,1746043832009,-510.81415968,0.00019875,2]
[359465440,1746043832030,-689.18584032,0.00019875,2]
[359465441,1746043832039,-300.0,0.00019875,2]
[359465442,1746043832050,-15296.73935336,0.00019876,2]
[359465443,1746043832059,-194.55219148,0.00019886,2]
[359465444,1746043832070,-3380.04932515,0.00019886,2]
[359465445,1746043832079,-23300.28323524,0.00019886,2]
[359465446,1746043832091,-644.80165007,0.00019886,2]
[359465447,1746043832103,-2763.35323409,0.00019886,2]
[359465455,1746043832262,-563.29853782,0.00019885,2]
[359465457,1746043832274,-563.29853782,0.00019885,2]
[359465459,1746043832284,-438.91892751,0.00019885,2]
[359465565,1746043837831,-124.37961031,0.00019885,2]
[359465566,1746043837841,-563.29853782,0.00019885,2]
[359465567,1746043837851,-563.29853782,0.00019885,2]
[359465568,1746043837861,-563.29853782,0.00019885,2]
[359465569,1746043837870,-563.29853782,0.00019885,2]
[359465570,1746043837879,-563.29853782,0.00019885,2]
[359465571,1746043837890,-563.29853782,0.00019885,2]
[359465572,1746043837899,-563.29853782,0.00019885,2]
[359465573,1746043837909,-563.29853782,0.00019885,2]
[359465574,1746043837918,-563.29853782,0.00019885,2]
[359465575,1746043837928,-563.29853782,0.00019885,2]
[359465576,1746043837937,-563.29853782,0.00019885,2]
[359465577,1746043837946,-563.29853782,0.00019885,2]
[359465578,1746043837956,-563.29853782,0.00019885,2]
[359465579,1746043837965,-563.29853782,0.00019885,2]
[359465580,1746043837974,-563.29853782,0.00019885,2]
[359465581,1746043837984,-563.29853782,0.00019885,2]
[359465582,1746043837995,-563.29853782,0.00019885,2]
[359465583,1746043838004,-563.29853782,0.00019885,2]
[359465584,1746043838014,-563.29853782,0.00019885,2]
[359465585,1746043838023,-563.29853782,0.00019885,2]
[359465586,1746043838032,-563.29853782,0.00019885,2]
[359465587,1746043838041,-563.29853782,0.00019885,2]
[359465589,1746043838051,-563.29853782,0.00019885,2]
[359465591,1746043838061,-563.29853782,0.00019885,2]
[359465593,1746043838070,-563.29853782,0.00019885,2]
[359465595,1746043838079,-563.29853782,0.00019885,2]
[359465597,1746043838088,-563.29853782,0.00019885,2]
[359465599,1746043838098,-138.67122268,0.00019885,2]
[359465640,1746043838694,-424.62731514,0.00019885,2]
[359465642,1746043838704,-563.29853782,0.00019885,2]
[359465644,1746043838713,-563.29853782,0.00019885,2]
[359465646,1746043838722,-563.29853782,0.00019885,2]
[359465648,1746043838731,-563.29853782,0.00019885,2]
[359465650,1746043838741,-563.29853782,0.00019885,2]
[359465652,1746043838751,-563.29853782,0.00019885,2]
[359465654,1746043838760,-496.53295206,0.00019885,2]
[359465656,1746043838771,-66.76558576,0.00019885,2]
[359465658,1746043838780,-563.29853782,0.00019885,2]
[359465659,1746043838789,-563.29853782,0.00019885,2]
[359465661,1746043838799,-563.29853782,0.00019885,2]
[359465663,1746043838808,-563.29853782,0.00019885,2]
[359465665,1746043838818,-63.54026293,0.00019885,2]
[359465669,1746043838845,-499.75827489,0.00019885,2]
[359465671,1746043838854,-256.04030501,0.00019885,2]
[359465673,1746043838865,-307.25823281,0.00019885,2]
[359465675,1746043838875,-414.83487369,0.00019885,2]
[359465789,1746043840047,-148.46366413,0.00019885,2]
[359465791,1746043840056,-563.29853782,0.00019885,2]
[359465793,1746043840066,-563.29853782,0.00019885,2]
[359465795,1746043840075,-451.78212519,0.00019885,2]
[359465797,1746043840086,-111.51641263,0.00019885,2]
[359465799,1746043840095,-563.29853782,0.00019885,2]
[359465801,1746043840104,-46.20479181,0.00019885,2]
[359465825,1746043840359,-517.09374601,0.00019885,2]
[359465827,1746043840369,-563.29853782,0.00019885,2]
[359465829,1746043840378,-563.29853782,0.00019885,2]
[359465830,1746043840387,-18702.36708006,0.00019886,2]
[359465832,1746043840396,-155.15136,0.000199,2]
[359465834,1746043840405,-254.51040504,0.000199,2]
[359465835,1746043840414,-182.45137214,0.000199,2]
[359465837,1746043840423,-245.40915426,0.0001991,2]
[359465839,1746043840433,-3224.0144338,0.0001991,2]
[359465841,1746043840442,-500.0,0.00019973,2]
[359465842,1746043840452,-402.41000989,0.00019973,2]
[359465844,1746043840461,-393.37197229,0.00019973,2]
[359465846,1746043840470,-612.2194362,0.00019973,2]
[359465847,1746043840479,-500.0,0.00019973,2]
[359465849,1746043840488,-1014.588,0.00019973,2]
[359465851,1746043840498,-500.0,0.00019975,2]
[359465853,1746043840508,-500.0,0.00019975,2]
[359465854,1746043840522,-500.0,0.00019975,2]
[359465856,1746043840532,-560.43114152,0.00019975,2]
[359465858,1746043840541,-500.0,0.00019975,2]
[359465860,1746043840551,-500.0,0.00019975,2]
[359465862,1746043840560,-500.0,0.00019975,2]
[359465863,1746043840569,-597.32763208,0.00019975,2]
[359465865,1746043840578,-137691.4783418,0.00019976,2]
[359465867,1746043840587,-2362.6940649,0.00019976,2]
[359465869,1746043840597,-2595.3290487,0.00019976,2]
[359465870,1746043840606,-1909.2691718,0.00019976,2]
[359465872,1746043840616,-7027.0054283,0.00019976,2]
[359465874,1746043840625,-60056.4316911,0.00019976,2]
[359465876,1746043840634,-20518.0811813,0.00019986,2]
[359465878,1746043840644,-112996.9431264,0.00019986,2]
[359465879,1746043840653,-1938.9522874,0.00019986,2]
[359465881,1746043840663,-2329.0424995,0.00019986,2]
[359465883,1746043840672,-1713.3738962,0.00019986,2]
[359465885,1746043840681,-6306.0189977,0.00019986,2]
[359465886,1746043840690,-55813.90442469,0.00019986,2]
[359466400,1746043845866,-19952.95603961,0.00019986,2]
[359466402,1746043845876,-616.88365833,0.0001999,2]
[359466404,1746043845885,-151.0,0.0001999,2]
[359466406,1746043845895,-311795.70566172,0.0002,2]
[359466409,1746043845907,-1803.80000001,0.0002,2]
[359466416,1746043845974,-6484.38454392,0.0002,2]
[359466419,1746043845985,-454.20498834,0.0002,2]
[359466434,1746043846126,-4710.7,0.0002,2]
[359466458,1746043846329,-2000.0,0.0002,2]
[359466629,1746043848090,222.22222,0.000248,34]
[359466637,1746043848152,222.22222,0.000298,44]
[359466648,1746043848253,222.22222,0.0002729,39]
[359468329,1746043898422,-6100.0,0.00045846,120]
[359468330,1746043898447,-2362.61713973,0.00045846,120]
[359468331,1746043898472,-4545.38709783,0.00045846,120]
[359468332,1746043898496,-159.0,0.00045846,31]
[359468333,1746043898521,-165.9861784,0.00045846,120]
[359468334,1746043898549,-171.0831606,0.00045846,120]
[359468335,1746043898575,-458.20132477,0.00045846,60]
[359468336,1746043898599,-764.03021862,0.00045846,60]
[359468337,1746043898627,-619612.31372686,0.00045846,60]
[359468338,1746043898653,-332.81167511,0.00045846,120]
[359468339,1746043898679,-430.81444106,0.00045846,120]
[359468340,1746043898704,-163.82559843,0.00045846,120]
[359468341,1746043898729,-362.67256968,0.00045846,90]
[359468342,1746043898753,-476.93219286,0.00045846,120]
[359468343,1746043898777,-159.63847655,0.00045846,120]
[359468344,1746043898801,-625.32978474,0.00045846,120]
[359468345,1746043898825,-155.02391658,0.00045846,120]
[359468346,1746043898848,-176.67988075,0.00045846,120]
[359468347,1746043898872,-683.14837291,0.00045846,120]
[359468348,1746043898896,-239.8954629,0.00045846,120]